[Event "Titled Tuesday Blitz January 04 2022"]
[White "Sadhwani, Raunak"]
[Black "Sanal, Vahap"]
[WhiteFideId "35093487"]
[BlackFideId "6300545"]
[WhiteElo "2616"]
[BlackElo "2603"]
[Result "0-1"]
[Round "06"]
[TimeControl "180+1"]
[Date "2022.01.04"]
[WhiteClock "0:00:02"]
[BlackClock "0:00:33"]

1. e4 {[%clk 0:03:00]}  e5 {[%clk 0:03:00]} 2. Nf3 {[%clk 0:03:00]}  Nc6 {[%clk 0:03:01]} 3. Bc4 {[%clk 0:02:59]}  Bc5 {[%clk 0:03:00]} 4. c3 {[%clk 0:02:59]}  Nf6 {[%clk 0:03:01]} 5. d3 {[%clk 0:02:57]}  d6 {[%clk 0:03:00]} 6. O-O {[%clk 0:02:55]}  a6 {[%clk 0:03:01]} 7. a4 {[%clk 0:02:55]}  Ba7 {[%clk 0:03:01]} 8. Na3 {[%clk 0:02:46]}  h6 {[%clk 0:03:01]} 9. Nc2 {[%clk 0:02:47]}  O-O {[%clk 0:03:02]} 10. Be3 {[%clk 0:02:47]}  d5 {[%clk 0:02:48]} 11. exd5 {[%clk 0:02:44]}  Nxd5 {[%clk 0:02:49]} 12. Bxa7 {[%clk 0:02:45]}  Rxa7 {[%clk 0:02:50]} 13. a5 {[%clk 0:02:36]}  Nf4 {[%clk 0:02:36]} 14. Ne3 {[%clk 0:02:20]}  b5 {[%clk 0:02:36]} 15. axb6 {[%clk 0:02:07]}  cxb6 {[%clk 0:02:37]} 16. g3 {[%clk 0:02:08]}  b5 {[%clk 0:02:21]} 17. Bb3 {[%clk 0:01:45]}  Nxd3 {[%clk 0:02:02]} 18. Bd5 {[%clk 0:01:45]}  Nxb2 {[%clk 0:01:59]} 19. Qb3 {[%clk 0:01:01]}  Ne7 {[%clk 0:01:57]} 20. Bxf7+ {[%clk 0:01:01]}  Rxf7 {[%clk 0:01:55]} 21. Nxe5 {[%clk 0:01:01]}  Nc4 {[%clk 0:01:50]} 22. Nxf7 {[%clk 0:01:01]}  Kxf7 {[%clk 0:01:47]} 23. Nxc4 {[%clk 0:01:01]}  bxc4 {[%clk 0:01:47]} 24. Qxc4+ {[%clk 0:01:02]}  Be6 {[%clk 0:01:47]} 25. Qf4+ {[%clk 0:00:58]}  Kg8 {[%clk 0:01:47]} 26. Qe3 {[%clk 0:00:59]}  Qd7 {[%clk 0:01:27]} 27. Rfd1 {[%clk 0:00:57]}  Nd5 {[%clk 0:01:27]} 28. Qe5 {[%clk 0:00:57]}  Qf7 {[%clk 0:01:18]} 29. c4 {[%clk 0:00:48]}  Nf6 {[%clk 0:01:12]} 30. c5 {[%clk 0:00:48]}  Bd5 {[%clk 0:01:09]} 31. Ra3 {[%clk 0:00:38]}  Re7 {[%clk 0:01:07]} 32. Qd6 {[%clk 0:00:33]}  Qh5 {[%clk 0:01:02]} 33. Rad3 {[%clk 0:00:31]}  Re6 {[%clk 0:00:45]} 34. Qf4 {[%clk 0:00:05]}  Re4 {[%clk 0:00:41]} 35. Qd6 {[%clk 0:00:04]}  Re6 {[%clk 0:00:38]} 36. Qf4 {[%clk 0:00:05]}  Qh3 {[%clk 0:00:34]} 37. f3 {[%clk 0:00:02]}  Re2 {[%clk 0:00:33]} 0-1


[Site "https://www.chess.com"]

[Event "Titled Tuesday Blitz January 04 2022"]
[White "Sipetin, Vladislav"]
[Black "Nogerbek, Kazybek"]
[WhiteFideId "24176893"]
[BlackFideId "13710427"]
[WhiteElo "2228"]
[BlackElo "2478"]
[Result "1-0"]
[Round "06"]
[TimeControl "180+1"]
[Date "2022.01.04"]
[WhiteClock "0:00:16"]
[BlackClock "0:00:02"]

1. e4 {[%clk 0:02:53]}  c5 {[%clk 0:02:59]} 2. c3 {[%clk 0:02:51]}  d5 {[%clk 0:02:58]} 3. exd5 {[%clk 0:02:52]}  Qxd5 {[%clk 0:02:59]} 4. d4 {[%clk 0:02:52]}  Nf6 {[%clk 0:02:59]} 5. Nf3 {[%clk 0:02:50]}  e6 {[%clk 0:02:59]} 6. Na3 {[%clk 0:02:48]}  Nc6 {[%clk 0:02:58]} 7. Nb5 {[%clk 0:02:47]}  Qd8 {[%clk 0:02:56]} 8. dxc5 {[%clk 0:02:47]}  Bxc5 {[%clk 0:02:56]} 9. Qxd8+ {[%clk 0:02:46]}  Kxd8 {[%clk 0:02:57]} 10. Bf4 {[%clk 0:02:45]}  Ne4 {[%clk 0:02:56]} 11. Nbd4 {[%clk 0:02:45]}  Nxd4 {[%clk 0:02:25]} 12. Nxd4 {[%clk 0:02:45]}  Bd7 {[%clk 0:02:20]} 13. f3 {[%clk 0:02:15]}  Bd6 {[%clk 0:02:06]} 14. Bxd6 {[%clk 0:02:00]}  Nxd6 {[%clk 0:02:07]} 15. O-O-O {[%clk 0:02:00]}  Kc7 {[%clk 0:02:06]} 16. Be2 {[%clk 0:01:58]}  e5 {[%clk 0:02:05]} 17. Nc2 {[%clk 0:01:48]}  Be6 {[%clk 0:02:01]} 18. Ne3 {[%clk 0:01:43]}  Rhd8 {[%clk 0:02:01]} 19. Nd5+ {[%clk 0:01:40]}  Bxd5 {[%clk 0:02:00]} 20. Rxd5 {[%clk 0:01:41]}  f6 {[%clk 0:01:58]} 21. Rhd1 {[%clk 0:01:35]}  b6 {[%clk 0:01:58]} 22. Kc2 {[%clk 0:01:24]}  Nf5 {[%clk 0:01:57]} 23. Rxd8 {[%clk 0:01:18]}  Rxd8 {[%clk 0:01:58]} 24. Rxd8 {[%clk 0:01:19]}  Kxd8 {[%clk 0:01:59]} 25. Kd3 {[%clk 0:01:19]}  Kc7 {[%clk 0:01:56]} 26. Ke4 {[%clk 0:01:13]}  Ne7 {[%clk 0:01:54]} 27. f4 {[%clk 0:01:14]}  exf4 {[%clk 0:01:39]} 28. Kxf4 {[%clk 0:01:15]}  Kd6 {[%clk 0:01:39]} 29. Bd3 {[%clk 0:01:14]}  g6 {[%clk 0:01:34]} 30. g4 {[%clk 0:01:08]}  Nd5+ {[%clk 0:01:26]} 31. Ke4 {[%clk 0:01:07]}  Nc7 {[%clk 0:01:26]} 32. Bc4 {[%clk 0:01:03]}  Ne8 {[%clk 0:01:10]} 33. b4 {[%clk 0:00:53]}  h6 {[%clk 0:01:04]} 34. Bf7 {[%clk 0:00:50]}  f5+ {[%clk 0:01:04]} 35. gxf5 {[%clk 0:00:45]}  Nf6+ {[%clk 0:01:04]} 36. Ke3 {[%clk 0:00:44]}  g5 {[%clk 0:00:52]} 37. Kd4 {[%clk 0:00:40]}  Ng4 {[%clk 0:00:44]} 38. c4 {[%clk 0:00:31]}  Nxh2 {[%clk 0:00:42]} 39. c5+ {[%clk 0:00:32]}  bxc5+ {[%clk 0:00:43]} 40. bxc5+ {[%clk 0:00:33]}  Ke7 {[%clk 0:00:33]} 41. Bc4 {[%clk 0:00:29]}  Ng4 {[%clk 0:00:27]} 42. Be2 {[%clk 0:00:28]}  Nf6 {[%clk 0:00:23]} 43. c6 {[%clk 0:00:23]}  Kd6 {[%clk 0:00:22]} 44. c7 {[%clk 0:00:24]}  Kxc7 {[%clk 0:00:16]} 45. Ke5 {[%clk 0:00:24]}  Nd7+ {[%clk 0:00:12]} 46. Ke6 {[%clk 0:00:24]}  Nc5+ {[%clk 0:00:06]} 47. Ke7 {[%clk 0:00:22]}  Ne4 {[%clk 0:00:05]} 48. f6 {[%clk 0:00:23]}  Nxf6 {[%clk 0:00:02]} 49. Kxf6 {[%clk 0:00:24]}  Kd6 {[%clk 0:00:03]} 50. Kg6 {[%clk 0:00:22]}  Ke5 {[%clk 0:00:02]} 51. Kxh6 {[%clk 0:00:23]}  Kf4 {[%clk 0:00:02]} 52. Kh5 {[%clk 0:00:23]}  a5 {[%clk 0:00:02]} 53. a4 {[%clk 0:00:23]}  Kf5 {[%clk 0:00:01]} 54. Bb5 {[%clk 0:00:15]}  Kf4 {[%clk 0:00:02]} 55. Bd7 {[%clk 0:00:16]} 1-0


[Site "https://www.chess.com"]

[Event "Titled Tuesday Blitz January 04 2022"]
[White "Sjugirov, Sanan"]
[Black "Roshka, Yevgeniy"]
[WhiteFideId "4189302"]
[BlackFideId "14129558"]
[WhiteElo "2602"]
[BlackElo "2437"]
[Result "1-0"]
[Round "06"]
[TimeControl "180+1"]
[Date "2022.01.04"]
[WhiteClock "0:00:19"]
[BlackClock "0:00:35"]

1. d4 {[%clk 0:03:00]}  Nf6 {[%clk 0:02:59]} 2. c4 {[%clk 0:03:00]}  c5 {[%clk 0:02:58]} 3. d5 {[%clk 0:02:58]}  e6 {[%clk 0:02:59]} 4. Nc3 {[%clk 0:02:56]}  d6 {[%clk 0:02:59]} 5. Nf3 {[%clk 0:02:55]}  g6 {[%clk 0:02:59]} 6. e4 {[%clk 0:02:52]}  Bg7 {[%clk 0:02:59]} 7. h3 {[%clk 0:02:52]}  O-O {[%clk 0:02:59]} 8. Be3 {[%clk 0:02:52]}  Re8 {[%clk 0:02:50]} 9. Bd3 {[%clk 0:02:50]}  Na6 {[%clk 0:02:46]} 10. O-O {[%clk 0:02:47]}  Nc7 {[%clk 0:02:46]} 11. a4 {[%clk 0:02:42]}  e5 {[%clk 0:02:30]} 12. g4 {[%clk 0:02:14]}  h5 {[%clk 0:02:17]} 13. Nh2 {[%clk 0:02:14]}  Nh7 {[%clk 0:01:59]} 14. Kg2 {[%clk 0:01:49]}  hxg4 {[%clk 0:01:41]} 15. hxg4 {[%clk 0:01:50]}  Qh4 {[%clk 0:01:41]} 16. Qf3 {[%clk 0:01:44]}  Bh6 {[%clk 0:01:23]} 17. Bxh6 {[%clk 0:01:37]}  Qxh6 {[%clk 0:01:23]} 18. Nd1 {[%clk 0:01:21]}  Na6 {[%clk 0:01:14]} 19. Ne3 {[%clk 0:01:17]}  Nb4 {[%clk 0:01:14]} 20. Be2 {[%clk 0:01:18]}  Ng5 {[%clk 0:01:12]} 21. Qg3 {[%clk 0:01:02]}  Nxe4 {[%clk 0:01:12]} 22. Qf3 {[%clk 0:01:03]}  Ng5 {[%clk 0:00:56]} 23. Qg3 {[%clk 0:01:03]}  Ne4 {[%clk 0:00:47]} 24. Qf3 {[%clk 0:01:03]}  Qf4 {[%clk 0:00:48]} 25. Rfd1 {[%clk 0:00:33]}  Qxf3+ {[%clk 0:00:40]} 26. Nxf3 {[%clk 0:00:30]}  Kg7 {[%clk 0:00:35]} 27. Rh1 {[%clk 0:00:29]}  Bd7 {[%clk 0:00:35]} 28. g5 {[%clk 0:00:19]}  Rh8 {[%clk 0:00:35]} 1-0


[Site "https://www.chess.com"]

[Event "Titled Tuesday Blitz January 04 2022"]
[White "Volkov, Maksim"]
[Black "Kamsky, Gata"]
[WhiteFideId "54123070"]
[BlackFideId "2000024"]
[WhiteElo "2081"]
[BlackElo "2645"]
[Result "0-1"]
[Round "06"]
[TimeControl "180+1"]
[Date "2022.01.04"]
[WhiteClock "0:00:09"]
[BlackClock "0:01:09"]

1. d4 {[%clk 0:02:59]}  Nf6 {[%clk 0:02:53]} 2. c4 {[%clk 0:02:59]}  e6 {[%clk 0:02:52]} 3. g3 {[%clk 0:02:59]}  d5 {[%clk 0:02:41]} 4. Nf3 {[%clk 0:02:59]}  Bb4+ {[%clk 0:02:40]} 5. Bd2 {[%clk 0:02:58]}  Be7 {[%clk 0:02:39]} 6. Bg2 {[%clk 0:02:58]}  O-O {[%clk 0:02:39]} 7. O-O {[%clk 0:02:58]}  Nbd7 {[%clk 0:02:39]} 8. Qc2 {[%clk 0:02:58]}  c6 {[%clk 0:02:37]} 9. Rd1 {[%clk 0:02:46]}  a5 {[%clk 0:02:36]} 10. Bf4 {[%clk 0:02:43]}  Nh5 {[%clk 0:02:35]} 11. Bc1 {[%clk 0:02:41]}  f5 {[%clk 0:02:34]} 12. b3 {[%clk 0:02:37]}  b5 {[%clk 0:02:30]} 13. Nc3 {[%clk 0:02:16]}  Ba6 {[%clk 0:02:27]} 14. cxb5 {[%clk 0:02:13]}  cxb5 {[%clk 0:02:27]} 15. Qd2 {[%clk 0:02:04]}  Rc8 {[%clk 0:02:21]} 16. Bb2 {[%clk 0:02:01]}  Nhf6 {[%clk 0:02:19]} 17. Ne1 {[%clk 0:01:53]}  Qb6 {[%clk 0:02:17]} 18. e3 {[%clk 0:01:51]}  b4 {[%clk 0:02:12]} 19. Ne2 {[%clk 0:01:47]}  Ne4 {[%clk 0:02:11]} 20. Bxe4 {[%clk 0:01:45]}  fxe4 {[%clk 0:02:11]} 21. Rac1 {[%clk 0:01:43]}  Qb5 {[%clk 0:02:09]} 22. Rxc8 {[%clk 0:01:17]}  Rxc8 {[%clk 0:02:08]} 23. Kf1 {[%clk 0:01:17]}  Nf6 {[%clk 0:02:06]} 24. h3 {[%clk 0:01:16]}  h5 {[%clk 0:01:59]} 25. Rc1 {[%clk 0:01:14]}  Rxc1 {[%clk 0:01:53]} 26. Bxc1 {[%clk 0:01:15]}  Nh7 {[%clk 0:01:50]} 27. Ng2 {[%clk 0:01:00]}  Ng5 {[%clk 0:01:49]} 28. Nf4 {[%clk 0:01:00]}  Qc6 {[%clk 0:01:35]} 29. Nxh5 {[%clk 0:00:49]}  Nxh3 {[%clk 0:01:32]} 30. Bb2 {[%clk 0:00:45]}  Ng5 {[%clk 0:01:29]} 31. Qc1 {[%clk 0:00:42]}  Qxc1+ {[%clk 0:01:24]} 32. Bxc1 {[%clk 0:00:41]}  Nf3 {[%clk 0:01:25]} 33. Nf4 {[%clk 0:00:40]}  Kf7 {[%clk 0:01:24]} 34. Nh3 {[%clk 0:00:35]}  g5 {[%clk 0:01:23]} 35. g4 {[%clk 0:00:32]}  Bd6 {[%clk 0:01:18]} 36. Bb2 {[%clk 0:00:30]}  Kg6 {[%clk 0:01:18]} 37. Bc1 {[%clk 0:00:30]}  Nh2+ {[%clk 0:01:16]} 38. Ke1 {[%clk 0:00:29]}  Nxg4 {[%clk 0:01:16]} 39. Bd2 {[%clk 0:00:25]}  Nh2 {[%clk 0:01:16]} 40. Nhg1 {[%clk 0:00:20]}  Kf5 {[%clk 0:01:15]} 41. Bc1 {[%clk 0:00:12]}  Kg4 {[%clk 0:01:14]} 42. Kd2 {[%clk 0:00:11]}  Nf3+ {[%clk 0:01:11]} 43. Kd1 {[%clk 0:00:11]}  Bh2 {[%clk 0:01:09]} 44. Nxf3 {[%clk 0:00:09]}  exf3 {[%clk 0:01:09]} 0-1


[Site "https://www.chess.com"]

[Event "Titled Tuesday Blitz January 04 2022"]
[White "Yanchenko, Roman"]
[Black "Albornoz Cabrera, Carlos Daniel"]
[WhiteFideId "4137329"]
[BlackFideId "3518736"]
[WhiteElo "2514"]
[BlackElo "2490"]
[Result "0-1"]
[Round "06"]
[TimeControl "180+1"]
[Date "2022.01.04"]
[WhiteClock "0:00:08"]
[BlackClock "0:00:08"]

1. d4 {[%clk 0:03:00]}  Nf6 {[%clk 0:02:59]} 2. c4 {[%clk 0:03:01]}  g6 {[%clk 0:02:59]} 3. Nf3 {[%clk 0:03:01]}  Bg7 {[%clk 0:03:00]} 4. Nc3 {[%clk 0:03:01]}  O-O {[%clk 0:03:00]} 5. Bf4 {[%clk 0:03:02]}  d6 {[%clk 0:03:01]} 6. e3 {[%clk 0:03:02]}  Nbd7 {[%clk 0:03:00]} 7. Be2 {[%clk 0:03:03]}  Re8 {[%clk 0:03:00]} 8. O-O {[%clk 0:03:03]}  b6 {[%clk 0:03:00]} 9. h3 {[%clk 0:03:03]}  Bb7 {[%clk 0:03:00]} 10. Rc1 {[%clk 0:03:03]}  e5 {[%clk 0:03:00]} 11. dxe5 {[%clk 0:03:01]}  dxe5 {[%clk 0:03:00]} 12. Bg3 {[%clk 0:03:01]}  Ne4 {[%clk 0:02:57]} 13. Nxe4 {[%clk 0:03:00]}  Bxe4 {[%clk 0:02:58]} 14. Bh4 {[%clk 0:02:55]}  Qc8 {[%clk 0:02:50]} 15. b4 {[%clk 0:02:32]}  a5 {[%clk 0:02:42]} 16. a3 {[%clk 0:02:31]}  axb4 {[%clk 0:02:42]} 17. axb4 {[%clk 0:02:32]}  Nf6 {[%clk 0:02:32]} 18. Qb3 {[%clk 0:02:27]}  Qb7 {[%clk 0:02:30]} 19. Rfd1 {[%clk 0:02:22]}  h6 {[%clk 0:02:30]} 20. Bg3 {[%clk 0:02:13]}  Nh7 {[%clk 0:02:22]} 21. c5 {[%clk 0:02:09]}  bxc5 {[%clk 0:02:08]} 22. Rxc5 {[%clk 0:02:09]}  Nf8 {[%clk 0:02:07]} 23. Rdc1 {[%clk 0:02:02]}  Ne6 {[%clk 0:01:55]} 24. Rb5 {[%clk 0:02:01]}  Qa7 {[%clk 0:01:54]} 25. Bxe5 {[%clk 0:01:56]}  Bf8 {[%clk 0:01:46]} 26. Nd2 {[%clk 0:01:48]}  Bb7 {[%clk 0:01:41]} 27. Bf3 {[%clk 0:01:44]}  Bxf3 {[%clk 0:01:40]} 28. Nxf3 {[%clk 0:01:45]}  Qa6 {[%clk 0:01:34]} 29. Ra5 {[%clk 0:01:36]}  Qb7 {[%clk 0:01:33]} 30. Rxa8 {[%clk 0:01:30]}  Rxa8 {[%clk 0:01:34]} 31. b5 {[%clk 0:01:28]}  Rb8 {[%clk 0:01:25]} 32. Nd4 {[%clk 0:01:26]}  Nc5 {[%clk 0:01:17]} 33. Qc4 {[%clk 0:01:22]}  Re8 {[%clk 0:01:14]} 34. Nc6 {[%clk 0:01:18]}  Ne6 {[%clk 0:01:07]} 35. Bb2 {[%clk 0:01:16]}  Qb6 {[%clk 0:00:59]} 36. Rd1 {[%clk 0:01:12]}  Qc5 {[%clk 0:00:51]} 37. Qxc5 {[%clk 0:00:59]}  Nxc5 {[%clk 0:00:52]} 38. Rd5 {[%clk 0:00:51]}  Ne6 {[%clk 0:00:49]} 39. g3 {[%clk 0:00:49]}  Ra8 {[%clk 0:00:48]} 40. Be5 {[%clk 0:00:46]}  Ra3 {[%clk 0:00:38]} 41. Nd8 {[%clk 0:00:37]}  Ng5 {[%clk 0:00:28]} 42. Kg2 {[%clk 0:00:34]}  Ra2 {[%clk 0:00:25]} 43. Rd4 {[%clk 0:00:29]}  Bc5 {[%clk 0:00:23]} 44. Rd3 {[%clk 0:00:12]}  Ne4 {[%clk 0:00:23]} 45. Nc6 {[%clk 0:00:07]}  Rxf2+ {[%clk 0:00:21]} 46. Kg1 {[%clk 0:00:08]}  f6 {[%clk 0:00:19]} 47. Bd4 {[%clk 0:00:05]}  Bd6 {[%clk 0:00:16]} 48. b6 {[%clk 0:00:03]}  cxb6 {[%clk 0:00:15]} 49. Bxb6 {[%clk 0:00:03]}  Rc2 {[%clk 0:00:15]} 50. Nd4 {[%clk 0:00:03]}  Rb2 {[%clk 0:00:13]} 51. Ba5 {[%clk 0:00:02]}  Bxg3 {[%clk 0:00:07]} 52. Ne6 {[%clk 0:00:02]}  Bf2+ {[%clk 0:00:07]} 53. Kf1 {[%clk 0:00:02]}  Bg3 {[%clk 0:00:06]} 54. Rd8+ {[%clk 0:00:01]}  Kf7 {[%clk 0:00:06]} 55. Nd4 {[%clk 0:00:02]}  Rf2+ {[%clk 0:00:06]} 56. Kg1 {[%clk 0:00:03]}  Ra2 {[%clk 0:00:07]} 57. Rd7+ {[%clk 0:00:02]}  Ke8 {[%clk 0:00:07]} 58. Rd8+ {[%clk 0:00:03]}  Ke7 {[%clk 0:00:08]} 59. Nc6+ {[%clk 0:00:03]}  Ke6 {[%clk 0:00:08]} 60. Re8+ {[%clk 0:00:03]}  Kd5 {[%clk 0:00:08]} 61. Rxe4 {[%clk 0:00:03]}  Kxe4 {[%clk 0:00:08]} 62. Bc3 {[%clk 0:00:04]}  Kf3 {[%clk 0:00:07]} 63. Nd4+ {[%clk 0:00:04]}  Kxe3 {[%clk 0:00:07]} 64. Ne6 {[%clk 0:00:05]}  Kf3 {[%clk 0:00:08]} 65. Nd4+ {[%clk 0:00:05]}  Ke4 {[%clk 0:00:08]} 66. Nb5 {[%clk 0:00:06]}  Be5 {[%clk 0:00:08]} 67. Kf1 {[%clk 0:00:07]}  Rc2 {[%clk 0:00:07]} 68. Bxe5 {[%clk 0:00:07]}  Kxe5 {[%clk 0:00:08]} 69. Na7 {[%clk 0:00:07]}  Rc5 {[%clk 0:00:08]} 70. Nb5 {[%clk 0:00:08]}  Rxb5 {[%clk 0:00:08]} 0-1


[Site "https://www.chess.com"]

[Event "Titled Tuesday Blitz January 04 2022"]
[White "Yilmaz, Mustafa"]
[Black "Darini, Pouria"]
[WhiteFideId "6302718"]
[BlackFideId "12502200"]
[WhiteElo "2568"]
[BlackElo "2489"]
[Result "0-1"]
[Round "06"]
[TimeControl "180+1"]
[Date "2022.01.04"]
[WhiteClock "0:02:13"]
[BlackClock "0:00:43"]

1. c4 {[%clk 0:03:00]}  e5 {[%clk 0:02:59]} 2. Nc3 {[%clk 0:03:01]}  Bb4 {[%clk 0:03:00]} 3. Nd5 {[%clk 0:03:00]}  a5 {[%clk 0:03:00]} 4. a3 {[%clk 0:03:00]}  Be7 {[%clk 0:02:59]} 5. Nf3 {[%clk 0:02:59]}  Nc6 {[%clk 0:02:58]} 6. d3 {[%clk 0:02:55]}  Nf6 {[%clk 0:02:58]} 7. Nxe7 {[%clk 0:02:55]}  Qxe7 {[%clk 0:02:58]} 8. g3 {[%clk 0:02:56]}  d6 {[%clk 0:02:58]} 9. Bg2 {[%clk 0:02:56]}  O-O {[%clk 0:02:58]} 10. O-O {[%clk 0:02:57]}  Bg4 {[%clk 0:02:59]} 11. Rb1 {[%clk 0:02:55]}  a4 {[%clk 0:02:59]} 12. h3 {[%clk 0:02:53]}  Bh5 {[%clk 0:02:47]} 13. b4 {[%clk 0:02:49]}  axb3 {[%clk 0:02:47]} 14. Rxb3 {[%clk 0:02:50]}  b6 {[%clk 0:02:11]} 15. g4 {[%clk 0:02:49]}  Bg6 {[%clk 0:02:11]} 16. Nh4 {[%clk 0:02:49]}  Nd4 {[%clk 0:02:10]} 17. Rb2 {[%clk 0:02:45]}  Rxa3 {[%clk 0:01:53]} 18. e3 {[%clk 0:02:45]}  Rxd3 {[%clk 0:01:50]} 19. Nxg6 {[%clk 0:02:45]}  hxg6 {[%clk 0:01:24]} 20. Qxd3 {[%clk 0:02:39]}  Ne6 {[%clk 0:01:24]} 21. Ra2 {[%clk 0:02:35]}  e4 {[%clk 0:01:25]} 22. Qc3 {[%clk 0:02:34]}  Ng5 {[%clk 0:01:26]} 23. Bb2 {[%clk 0:02:32]}  Qe6 {[%clk 0:01:26]} 24. Rfa1 {[%clk 0:02:29]}  Kh7 {[%clk 0:01:10]} 25. Ra8 {[%clk 0:02:16]}  Rxa8 {[%clk 0:01:08]} 26. Rxa8 {[%clk 0:02:17]}  Nf3+ {[%clk 0:01:07]} 27. Bxf3 {[%clk 0:02:15]}  exf3 {[%clk 0:01:08]} 28. Qd4 {[%clk 0:02:14]}  c5 {[%clk 0:01:02]} 29. Qf4 {[%clk 0:02:14]}  Ne4 {[%clk 0:01:00]} 30. Qh6+ {[%clk 0:02:13]}  Kxh6 {[%clk 0:00:58]} 31. Rh8+ {[%clk 0:02:12]}  Kg5 {[%clk 0:00:59]} 32. Bxg7 {[%clk 0:02:13]}  Qxc4 {[%clk 0:00:43]} 0-1


[Site "https://www.chess.com"]

[Event "Titled Tuesday Blitz January 04 2022"]
[White "Yuan, Qingyu"]
[Black "Azadaliyev, Jahandar"]
[WhiteFideId "8609772"]
[BlackFideId "13425811"]
[WhiteElo "2359"]
[BlackElo "1795"]
[Result "1-0"]
[Round "06"]
[TimeControl "180+1"]
[Date "2022.01.04"]
[WhiteClock "0:00:12"]
[BlackClock "0:00:36"]

1. Nf3 {[%clk 0:03:00]}  d5 {[%clk 0:03:00]} 2. g3 {[%clk 0:03:00]}  Nf6 {[%clk 0:02:59]} 3. Bg2 {[%clk 0:03:00]}  e6 {[%clk 0:03:00]} 4. O-O {[%clk 0:03:01]}  b6 {[%clk 0:03:00]} 5. b3 {[%clk 0:03:00]}  Bb7 {[%clk 0:03:01]} 6. Bb2 {[%clk 0:03:00]}  Nbd7 {[%clk 0:03:02]} 7. c4 {[%clk 0:03:01]}  Be7 {[%clk 0:03:02]} 8. cxd5 {[%clk 0:03:00]}  exd5 {[%clk 0:03:03]} 9. d3 {[%clk 0:02:57]}  O-O {[%clk 0:03:03]} 10. Nbd2 {[%clk 0:02:57]}  Re8 {[%clk 0:03:02]} 11. Rc1 {[%clk 0:02:57]}  c6 {[%clk 0:03:01]} 12. e4 {[%clk 0:02:52]}  dxe4 {[%clk 0:02:59]} 13. dxe4 {[%clk 0:02:52]}  Ba6 {[%clk 0:02:44]} 14. Re1 {[%clk 0:02:35]}  Nc5 {[%clk 0:02:44]} 15. Ne5 {[%clk 0:02:35]}  Rc8 {[%clk 0:02:31]} 16. b4 {[%clk 0:02:12]}  Nd3 {[%clk 0:02:19]} 17. Nxd3 {[%clk 0:02:11]}  Bxd3 {[%clk 0:02:19]} 18. Qb3 {[%clk 0:02:06]}  Ba6 {[%clk 0:02:14]} 19. Nc4 {[%clk 0:02:01]}  Qd7 {[%clk 0:02:03]} 20. Ne5 {[%clk 0:01:49]}  Qe6 {[%clk 0:01:53]} 21. Qxe6 {[%clk 0:01:49]}  fxe6 {[%clk 0:01:54]} 22. Nxc6 {[%clk 0:01:50]}  Bf8 {[%clk 0:01:50]} 23. a4 {[%clk 0:01:42]}  Bb7 {[%clk 0:01:41]} 24. b5 {[%clk 0:01:34]}  Bc5 {[%clk 0:01:40]} 25. h3 {[%clk 0:01:08]}  a5 {[%clk 0:01:25]} 26. Bxf6 {[%clk 0:00:43]}  gxf6 {[%clk 0:01:24]} 27. e5 {[%clk 0:00:40]}  f5 {[%clk 0:01:20]} 28. Red1 {[%clk 0:00:35]}  Rc7 {[%clk 0:01:16]} 29. Kf1 {[%clk 0:00:32]}  Rec8 {[%clk 0:01:04]} 30. Ke2 {[%clk 0:00:26]}  Kf8 {[%clk 0:00:58]} 31. Rc3 {[%clk 0:00:24]}  Ke8 {[%clk 0:00:57]} 32. Bf3 {[%clk 0:00:21]}  Bf8 {[%clk 0:00:44]} 33. Bh5+ {[%clk 0:00:19]}  Rf7 {[%clk 0:00:43]} 34. Rd8+ {[%clk 0:00:12]}  Rxd8 {[%clk 0:00:42]} 35. Bxf7+ {[%clk 0:00:12]}  Kd7 {[%clk 0:00:41]} 36. Rd3+ {[%clk 0:00:12]}  Kc7 {[%clk 0:00:40]} 37. Nxd8 {[%clk 0:00:12]}  Bd5 {[%clk 0:00:35]} 38. Nxe6+ {[%clk 0:00:11]}  Bxe6 {[%clk 0:00:36]} 39. Bxe6 {[%clk 0:00:12]}  Bc5 {[%clk 0:00:36]} 40. f4 {[%clk 0:00:12]} 1-0


[Site "https://www.chess.com"]

[Event "Titled Tuesday Blitz January 04 2022"]
[White "Andreikin, Dmitry"]
[Black "Kravtsiv, Martyn"]
[WhiteFideId "4158814"]
[BlackFideId "14113147"]
[WhiteElo "2736"]
[BlackElo "2694"]
[Result "0-1"]
[Round "07"]
[TimeControl "180+1"]
[Date "2022.01.04"]
[WhiteClock "0:00:21"]
[BlackClock "0:00:34"]

1. d4 {[%clk 0:03:00]}  Nf6 {[%clk 0:02:59]} 2. c4 {[%clk 0:03:00]}  e6 {[%clk 0:02:59]} 3. Nf3 {[%clk 0:02:58]}  d5 {[%clk 0:02:58]} 4. Nc3 {[%clk 0:02:56]}  Nbd7 {[%clk 0:02:57]} 5. Bf4 {[%clk 0:02:55]}  Bb4 {[%clk 0:02:55]} 6. cxd5 {[%clk 0:02:49]}  exd5 {[%clk 0:02:54]} 7. Qc2 {[%clk 0:02:48]}  O-O {[%clk 0:02:54]} 8. a3 {[%clk 0:02:48]}  Bxc3+ {[%clk 0:02:53]} 9. Qxc3 {[%clk 0:02:47]}  c5 {[%clk 0:02:49]} 10. dxc5 {[%clk 0:02:38]}  Ne4 {[%clk 0:02:48]} 11. Qc2 {[%clk 0:02:35]}  Ndxc5 {[%clk 0:02:47]} 12. b4 {[%clk 0:02:29]}  Ne6 {[%clk 0:02:33]} 13. Be5 {[%clk 0:02:29]}  a5 {[%clk 0:02:31]} 14. e3 {[%clk 0:02:27]}  axb4 {[%clk 0:02:21]} 15. axb4 {[%clk 0:02:27]}  Rxa1+ {[%clk 0:02:21]} 16. Bxa1 {[%clk 0:02:28]}  Qb6 {[%clk 0:02:19]} 17. Qb2 {[%clk 0:02:17]}  Bd7 {[%clk 0:02:18]} 18. Bd3 {[%clk 0:02:10]}  Bb5 {[%clk 0:02:17]} 19. Nd4 {[%clk 0:01:44]}  Nxd4 {[%clk 0:01:58]} 20. Bxb5 {[%clk 0:01:43]}  Qxb5 {[%clk 0:01:57]} 21. Qxd4 {[%clk 0:01:43]}  f6 {[%clk 0:01:54]} 22. Qd1 {[%clk 0:01:07]}  Ra8 {[%clk 0:01:13]} 23. f3 {[%clk 0:00:50]}  Qxb4+ {[%clk 0:01:01]} 24. Kf1 {[%clk 0:00:51]}  Nd2+ {[%clk 0:00:43]} 25. Kg1 {[%clk 0:00:51]}  Qb3 {[%clk 0:00:43]} 26. Kf2 {[%clk 0:00:43]}  Ra2 {[%clk 0:00:37]} 27. Kg3 {[%clk 0:00:27]}  Qxe3 {[%clk 0:00:36]} 28. h4 {[%clk 0:00:21]}  Ne4+ {[%clk 0:00:34]} 0-1


[Site "https://www.chess.com"]